bitfinex/quotes_ETHUSD_20240925
["timestamp","ask_amount","ask_price","bid_price","bid_amount"]
[1727246219746,0.08788078,2618.5,2618.2,0.8093]
[1727246219912,0.88313325,2618.5,2618.3,0.40140218]
[1727246220113,0.88313325,2618.5,2618.4,0.40140218]
[1727246220939,0.88313325,2618.5,2618.2,4.6287]
[1727246221252,0.08788078,2618.5,2618.4,0.4014292]
[1727246221838,4.61381247,2618.8,2618.4,0.4014292]
[1727246222039,0.79525247,2618.8,2618.4,1.64159177]
[1727246222251,0.0850426,2618.7,2618.6,6.26972177]
[1727246222747,0.08513097,2618.7,2618.6,6.67115097]
[1727246222950,12.83006247,2619.1,2618.6,7.22115097]
[1727246223113,5.37006247,2619.1,2618.7,0.4014292]
[1727246223316,4.57481,2619.1,2618.8,0.4014292]
[1727246223515,4.57481,2619.1,2618.9,0.40093878]
[1727246223718,0.7567,2619.1,2618.7,0.79193542]
[1727246223918,1.19282997,2619.4,2619.0,2.45089177]
[1727246223919,0.79525247,2619.3,2619.0,2.45089177]
[1727246224152,3.81775,2619.4,2619.0,2.52724738]
[1727246224459,0.7567,2619.5,2619.0,6.26909177]
[1727246224658,0.7567,2619.5,2619.1,0.07635135]
[1727246224812,1.55985247,2619.7,2619.1,0.07635135]
[1727246225011,0.7646,2619.7,2619.2,5.45954177]
[1727246225212,4.58184,2619.7,2619.3,0.07634546]
[1727246225547,4.58184,2619.7,2619.2,5.45954177]
[1727246226227,4.58184,2619.7,2619.2,5.5358873]
[1727246226414,4.58184,2619.7,2619.2,3.81795]
[1727246226816,0.08616772,2619.6,2619.2,3.81795]
[1727246227019,0.08616772,2619.6,2619.2,4.66249]
[1727246228026,0.08616772,2619.6,2619.4,0.8061]
[1727246228224,0.0381999,2619.8,2619.5,0.07633899]
[1727246229264,0.0381999,2619.8,2619.6,4.36737]
[1727246229572,0.0381999,2619.8,2619.7,0.8824338]
[1727246229864,0.0381999,2619.8,2619.7,1.7703154]
[1727246230252,0.0381999,2619.8,2619.7,5.5875454]
[1727246230456,0.0381999,2619.8,2619.7,6.1375454]
[1727246230627,0.0381999,2619.8,2619.7,9.69021857]
[1727246230850,0.0381999,2619.8,2619.7,9.61388477]
[1727246231698,0.0381999,2619.8,2619.7,12.61388477]
[1727246232207,0.0381999,2619.8,2619.7,9.0612116]
[1727246235051,0.0381999,2619.8,2619.7,5.2439816]
[1727246237294,0.0381999,2619.8,2619.7,2.2439816]
[1727246239270,0.0381999,2619.8,2619.7,1.3561]
[1727246240155,0.0381999,2619.8,2619.7,4.90877317]
[1727246240398,0.0381999,2619.8,2619.7,7.90877317]
[1727246240607,0.0381999,2619.8,2619.7,11.72600317]
[1727246242280,3.81616,2620.5,2620.0,3.81679]
[1727246242281,3.81614,2620.5,2620.0,3.81679]
[1727246242604,0.0381999,2620.6,2620.3,0.55]
[1727246242793,0.0381999,2620.6,2620.4,0.07631321]
[1727246243190,0.0381999,2620.6,2620.5,1.3612]
[1727246243594,0.0381999,2620.6,2620.5,8.17726]
[1727246243906,0.0381999,2620.6,2620.5,4.3612]
[1727246244091,0.0381999,2620.6,2620.5,4.43750298]
[1727246245704,0.0381999,2620.6,2620.5,4.3612]
[1727246245871,0.0381999,2620.6,2620.5,5.57599018]
[1727246246203,0.0381999,2620.6,2620.5,9.39205018]
[1727246247304,4.6056,2621.5,2620.5,9.39205018]
[1727246247305,4.6056,2621.5,2621.0,1.3612]
[1727246247502,3.8530699,2621.4,2621.0,1.3612]
[1727246247874,7.71212585,2621.3,2621.0,1.3612]
[1727246248198,3.89713585,2621.3,2620.9,0.55]
[1727246248400,0.08220585,2621.3,2620.9,1.72295532]
[1727246248573,0.08220585,2621.3,2621.1,0.55]
[1727246248764,0.08220585,2621.3,2620.9,5.53843532]
[1727246249362,0.08220585,2621.3,2620.9,5.61472815]
[1727246249660,0.08220585,2621.3,2621.1,0.55]
[1727246249979,0.08220585,2621.3,2621.2,1.3612]
[1727246250393,0.0381999,2621.4,2621.2,1.3612]
[1727246250568,0.0381999,2621.4,2621.3,0.55]
[1727246250767,0.0381999,2621.4,2621.3,0.62628771]
[1727246251170,0.12052012,2621.4,2621.3,0.62628771]
[1727246251410,0.0381999,2621.4,2621.3,2.1883148]
[1727246251611,0.12052012,2621.4,2621.3,2.11202709]
[1727246251775,0.12052012,2621.4,2621.3,0.55]
[1727246252811,0.12052012,2621.4,2621.3,10.91757317]
[1727246253807,0.12052012,2621.4,2621.3,7.10267317]
[1727246253982,0.12052012,2621.4,2621.3,3.55]
[1727246255114,0.12052012,2621.4,2621.3,7.3649]
[1727246255306,0.12052012,2621.4,2621.3,5.10437032]
[1727246255507,0.12052012,2621.4,2621.3,0.55]
[1727246255730,0.0381999,2621.4,2621.3,0.55]
[1727246255899,0.11772151,2621.4,2621.3,0.55]
[1727246256097,0.0381999,2621.4,2621.1,0.55]
[1727246256429,0.11772151,2621.4,2621.1,0.62628934]
[1727246256600,0.11772151,2621.4,2621.1,4.90173387]
[1727246258034,0.11772151,2621.4,2621.1,12.26948704]
[1727246258336,0.11772151,2621.4,2621.3,1.3677]
[1727246258502,0.11772151,2621.4,2621.3,5.1826]
[1727246258835,0.11772151,2621.4,2621.3,6.87280856]
[1727246260609,0.11772151,2621.4,2621.3,6.05510856]
[1727246261239,0.11772151,2621.4,2621.3,6.13139139]
[1727246266448,0.11772151,2621.4,2621.3,9.13139139]
[1727246266654,0.11772151,2621.4,2621.3,9.05510856]
[1727246267161,0.11772151,2621.4,2620.9,4.63314]
[1727246267364,0.11772151,2621.4,2621.1,3.81518]
[1727246267559,0.0381999,2621.4,2621.2,3.89122599]
[1727246268435,0.0381999,2621.4,2621.2,3.81494]
[1727246268676,0.0381999,2621.4,2621.3,0.55]
[1727246268977,0.11837463,2621.4,2621.3,1.368012]
[1727246269373,0.11837463,2621.4,2621.3,5.182912]
[1727246269534,0.11837463,2621.4,2621.3,8.25919468]
[1727246269729,0.11837463,2621.4,2621.3,8.182912]
[1727246270772,0.11837463,2621.4,2621.3,11.73558517]
[1727246271057,0.0381999,2621.4,2621.3,12.50838517]
[1727246282308,0.11845016,2621.4,2621.3,12.50838517]
[1727246282510,0.0381999,2621.4,2621.3,12.50838517]
[1727246282917,0.11852821,2621.4,2621.3,12.50838517]
[1727246283129,0.0381999,2621.4,2621.3,12.50838517]
[1727246283344,0.11852318,2621.4,2621.3,12.50838517]
[1727246283545,0.0381999,2621.4,2621.3,12.50838517]
[1727246283740,0.11852318,2621.4,2621.3,12.50838517]
[1727246285114,0.0381999,2621.4,2621.3,12.50838517]
[1727246285316,0.11851814,2621.4,2621.3,12.50838517]
[1727246285518,0.0381999,2621.4,2621.3,12.50838517]
[1727246286157,0.11851814,2621.4,2621.3,12.50838517]
[1727246286357,0.0381999,2621.4,2621.3,12.50838517]
[1727246286514,0.11851814,2621.4,2621.3,12.50838517]
[1727246286719,0.0281649,2621.4,2621.3,12.90807012]
[1727246286953,0.10848314,2621.4,2621.3,12.90807012]
[1727246288325,0.10848314,2621.4,2621.3,10.99207177]
[1727246288518,0.10848314,2621.4,2621.3,11.80854332]
[1727246288722,0.0281649,2621.4,2621.3,13.03323649]
[1727246289166,0.0281649,2621.4,2621.3,11.39656167]
[1727246289344,0.0281649,2621.4,2621.3,8.58259695]
[1727246289961,0.10859856,2621.4,2621.3,8.58259695]
[1727246290164,0.0281649,2621.4,2621.3,8.58259695]
[1727246290662,0.10862122,2621.4,2621.3,4.76769695]
[1727246290837,0.0281649,2621.4,2621.3,4.76769695]
[1727246291053,0.91212122,2621.4,2621.3,0.39968495]
[1727246291260,0.8316649,2621.4,2621.3,0.39968495]
[1727246291466,0.91234047,2621.4,2621.3,0.39968495]
[1727246292248,0.10884047,2621.4,2621.3,0.39968495]
[1727246292668,0.10884047,2621.4,2621.3,2.18667482]
[1727246292852,0.10884047,2621.4,2621.3,3.19518656]
[1727246293159,0.0281649,2621.4,2621.3,7.01008656]
[1727246293359,0.0281649,2621.4,2621.3,6.60937385]
[1727246294646,0.10852807,2621.4,2621.3,6.60937385]
[1727246294848,0.0281649,2621.4,2621.3,6.60937385]
[1727246295488,0.0281649,2621.4,2621.3,2.79447385]
[1727246296481,0.10854066,2621.4,2621.3,1.15779903]
[1727246296682,0.0281649,2621.4,2621.3,4.97269903]
[1727246296889,0.10854066,2621.4,2621.3,4.97269903]
[1727246297088,0.0281649,2621.4,2621.3,4.97269903]
[1727246297248,0.10854066,2621.4,2621.3,4.97269903]
[1727246298590,0.10854066,2621.4,2621.3,6.68566065]
[1727246299760,0.10854066,2621.4,2621.3,7.5038942]
[1727246300073,0.18890462,2621.4,2621.3,6.68566065]
[1727246300278,0.18890462,2621.4,2621.3,6.62706065]
[1727246300453,0.18890462,2621.4,2621.3,4.3063]
[1727246301096,0.18890462,2621.4,2621.3,4.3825871]
[1727246301395,0.18890462,2621.4,2621.3,6.01926192]
[1727246302768,0.18890462,2621.4,2621.3,4.3063]
[1727246305105,0.18890462,2621.4,2621.3,4.38258736]
[1727246305274,0.18890462,2621.4,2621.3,5.36601658]
[1727246305684,0.18890462,2621.4,2621.3,7.0026914]
[1727246309571,0.18890462,2621.4,2621.3,7.82103445]
[1727246311574,0.18890462,2621.4,2621.3,9.04861046]
[1727246311771,0.10854066,2621.4,2621.3,8.9723231]
[1727246313726,0.18873981,2621.4,2621.3,8.9723231]
[1727246314396,0.18873981,2621.4,2621.3,8.97245479]
[1727246314713,0.10854066,2621.4,2621.3,8.97245479]
[1727246315929,0.10854066,2621.4,2621.3,9.76854215]
[1727246316088,0.10854066,2621.4,2621.3,8.97245479]
[1727246316602,0.10854066,2621.4,2621.3,9.76854215]
[1727246317921,0.10854066,2621.4,2621.3,13.92988584]
[1727246318130,0.0381999,2622.2,2622.0,4.36388]
[1727246318277,0.0381999,2622.2,2622.1,3.81373]
[1727246318475,0.0381999,2622.2,2622.1,4.36373]
[1727246318688,0.0381999,2622.2,2622.1,6.00040482]
[1727246321432,0.11400313,2622.2,2622.1,6.00040482]
[1727246321634,0.11400313,2622.2,2622.1,2.18667482]
[1727246321935,0.11400313,2622.2,2622.1,6.00040482]
[1727246322540,0.11400313,2622.2,2622.1,6.9818243]
[1727246322735,0.11400313,2622.2,2622.1,7.05809223]
[1727246322905,0.11400313,2622.2,2622.1,6.9818243]
[1727246323247,0.11390944,2622.2,2622.1,5.34514948]
[1727246323596,0.0381999,2622.2,2622.1,5.34514948]
[1727246323823,0.11391894,2622.2,2622.1,5.34514948]
[1727246325736,0.11391894,2622.2,2622.1,6.9818243]
[1727246326298,0.11391894,2622.2,2622.1,7.05808982]
[1727246327415,0.0381999,2622.2,2622.1,10.82138982]
[1727246327601,0.0381999,2622.2,2622.1,10.7451243]
[1727246327802,0.0381999,2622.2,2622.1,11.56188284]
[1727246328011,0.0381999,2622.2,2622.1,12.78699198]
[1727246328237,0.0381999,2622.2,2622.1,13.42651148]
[1727246328738,0.0381999,2622.2,2622.1,13.4264905]
[1727246329543,0.0381999,2622.2,2622.1,14.22715993]
[1727246330132,0.0381999,2622.2,2622.1,13.4264905]
[1727246331510,0.0381999,2622.2,2622.1,12.78627616]
[1727246331938,0.0381999,2622.2,2622.1,13.42584689]
[1727246332213,0.0381999,2622.2,2622.1,13.42431742]
[1727246332415,0.0381999,2622.2,2622.1,14.06388505]
[1727246332914,0.0381999,2622.2,2622.1,13.42323153]
[1727246334123,0.0381999,2622.2,2622.1,13.42254925]
[1727246335114,0.0381999,2622.2,2622.1,12.19983486]
[1727246335515,0.0381999,2622.2,2622.1,13.42197947]
[1727246335719,0.0381999,2622.2,2622.1,14.2226489]
[1727246335921,0.0381999,2622.2,2622.1,13.42197947]
[1727246336132,0.0381999,2622.2,2622.1,14.62298362]
[1727246336569,0.0381999,2622.2,2622.1,16.25178324]
[1727246336860,0.0381999,2622.2,2622.1,16.25176389]
[1727246337032,0.0381999,2622.2,2622.1,15.05075974]
[1727246337236,0.0381999,2622.2,2622.1,13.42197947]
[1727246337460,0.0381999,2622.2,2622.1,16.24539284]
[1727246337771,0.0381999,2622.2,2622.1,14.61514306]
[1727246338064,0.0381999,2622.2,2622.1,15.04811539]
[1727246338265,0.0381999,2623.0,2622.1,15.04811539]
[1727246338266,0.0381999,2623.0,2622.9,7.36257]
[1727246338467,0.0381999,2623.0,2622.9,8.098827]
[1727246338654,0.0381999,2623.0,2622.9,11.64072962]
[1727246340865,0.0381999,2623.0,2622.9,8.098827]
[1727246342427,0.0381999,2623.0,2622.9,12.40212962]
[1727246342859,0.0381999,2623.0,2622.9,11.64072962]
[1727246343064,0.11262129,2623.0,2622.9,11.64072962]
[1727246343853,0.11262129,2623.0,2622.9,8.098827]
[1727246344865,0.11262129,2623.0,2622.9,4.286257]
[1727246345053,0.11262129,2623.0,2622.7,3.0]
[1727246345054,0.87022129,2623.0,2622.7,3.0]
[1727246345335,0.87022129,2623.0,2622.7,6.81284]
[1727246346452,0.87022129,2623.0,2622.8,0.55]
[1727246349335,0.11262129,2623.0,2622.9,7.36257]
[1727246349563,0.11262129,2623.0,2622.9,8.46064188]
[1727246351972,0.0381999,2623.0,2622.9,8.46064188]
[1727246352274,0.11289836,2623.0,2622.9,8.46064188]
[1727246352774,0.89549836,2623.0,2622.9,8.46064188]
[1727246352969,0.89549836,2623.0,2622.9,3.55]
[1727246353176,0.89549836,2623.0,2622.9,0.55]
[1727246353573,0.8207999,2623.0,2622.9,0.55]
[1727246353775,0.89549836,2623.0,2622.9,0.55]
[1727246354280,0.89549836,2623.0,2622.9,4.36257]
[1727246354498,0.89549836,2623.0,2622.9,5.180086]
[1727246354951,0.7826,2622.9,2622.5,6.81307]
[1727246355140,0.7826,2622.9,2622.6,3.81293]
[1727246355339,0.0744232,2622.8,2622.6,3.81293]
[1727246356477,4.59555,2622.7,2622.2,3.81359]
[1727246356655,4.59562,2622.6,2622.1,0.98141948]
[1727246356978,0.07426776,2622.5,2622.0,3.81384]
[1727246357167,0.07426776,2622.5,2622.1,0.0762638]
[1727246357346,0.07426776,2622.5,2622.3,3.81336]
[1727246357542,0.7826,2622.6,2622.3,4.93787764]
[1727246357764,0.7826,2622.6,2622.4,0.55]
[1727246358460,0.7826,2622.6,2622.3,1.12451764]
[1727246358461,4.59563,2622.6,2622.3,0.55]
[1727246358687,0.07417216,2622.5,2622.3,0.55]
[1727246359377,0.07417216,2622.5,2622.3,4.36336]
[1727246359582,0.07417216,2622.5,2622.3,5.099696]
[1727246360857,0.07417216,2622.5,2622.3,1.286336]
[1727246361189,0.07417216,2622.5,2622.2,0.94939463]
[1727246361373,0.07417216,2622.5,2622.2,1.34878612]
[1727246361762,0.07417216,2622.5,2622.2,5.16246469]
[1727246362069,0.07417216,2622.5,2622.2,4.76294463]
[1727246362278,0.07417216,2622.5,2622.2,5.16246673]
[1727246362477,0.07417216,2622.5,2622.2,5.16258903]
[1727246363886,0.07417216,2622.5,2622.3,4.2130744]
[1727246364083,0.07417216,2622.5,2622.3,3.81343]
[1727246364289,0.07417216,2622.5,2622.3,4.21319666]
[1727246364448,0.8161,2622.7,2622.5,3.8131]
[1727246364648,0.8161,2622.7,2622.6,0.55]
[1727246365877,0.8905349,2622.7,2622.6,0.55]
[1727246366498,0.8905349,2622.7,2622.5,4.36314]
[1727246366797,0.8905349,2622.7,2622.6,5.28920136]
[1727246367569,0.8905349,2622.7,2622.6,4.363]
[1727246368164,0.8905349,2622.7,2622.6,4.76293496]
[1727246368694,0.0744349,2622.7,2622.6,7.76293496]
[1727246368866,0.8161,2622.8,2622.6,7.76293496]
[1727246369051,0.07447325,2622.7,2622.6,7.363]
[1727246369250,0.07447325,2622.7,2622.6,7.76298395]
[1727246369598,0.8161,2622.8,2622.6,7.76298395]
[1727246369937,0.07447325,2622.7,2622.6,7.363]
[1727246370099,0.8161,2622.8,2622.6,7.76300094]
[1727246370245,0.07441792,2622.7,2622.6,7.76300094]
[1727246370448,0.8161,2622.8,2622.6,8.68418446]
[1727246370648,0.8161,2622.8,2622.7,3.81286]
[1727246370885,0.89059379,2622.8,2622.6,9.08423406]
[1727246371487,0.89059379,2622.8,2622.7,0.4000496]
[1727246372672,0.89059379,2622.8,2622.7,0.40020755]
[1727246373587,0.89059379,2622.8,2622.7,4.21306755]
[1727246374102,0.89059379,2622.8,2622.7,0.40020755]
[1727246375504,0.89059379,2622.8,2622.7,4.21306755]
[1727246376980,0.89059379,2622.8,2622.7,3.81286]
[1727246377379,0.89059379,2622.8,2622.7,4.2131414]
[1727246377602,0.89059379,2622.8,2622.7,0.4002814]
[1727246377913,0.07449379,2622.8,2622.7,0.4002814]
[1727246378114,0.8510999,2623.0,2622.8,0.55]
[1727246378263,0.8510999,2623.0,2622.9,4.7628514]
[1727246379805,0.0381999,2623.0,2622.9,4.7628514]
[1727246379979,0.0381999,2623.0,2622.9,5.82856307]
[1727246380371,0.0381999,2623.0,2622.9,5.42828167]
[1727246380574,0.0381999,2623.0,2622.9,5.82851207]
[1727246380763,0.11304346,2623.0,2622.9,5.82851207]
[1727246380968,0.11304346,2623.0,2622.9,5.42828167]
[1727246381214,0.11304346,2623.0,2622.9,5.90476303]
[1727246381937,0.11304346,2623.0,2622.9,5.82850612]
[1727246382134,0.11304346,2623.0,2622.9,6.65550612]
[1727246382335,0.0381999,2623.0,2622.9,6.73174795]
[1727246382492,0.0381999,2623.0,2622.9,6.65550612]
[1727246382842,0.0381999,2623.0,2622.9,5.82850612]
[1727246384491,0.1131994,2623.0,2622.9,5.82850612]
[1727246386110,0.0381999,2623.0,2622.9,5.82850612]
[1727246386729,0.0381999,2623.0,2622.9,8.82850612]
[1727246386891,0.0381999,2623.0,2622.9,8.42828167]
[1727246387098,0.0381999,2623.0,2622.9,8.82855837]
[1727246388535,0.0381999,2623.0,2622.9,9.64770501]
[1727246389408,0.0381999,2623.0,2622.9,8.82855837]
[1727246389804,0.0381999,2623.0,2622.9,9.64772515]
[1727246389998,0.0381999,2623.0,2622.9,9.64771948]
[1727246390323,0.0381999,2623.0,2622.9,9.64773544]
[1727246392549,0.0381999,2623.0,2622.9,9.64761131]
[1727246394211,0.0381999,2623.0,2622.9,8.82857433]
[1727246394443,0.0381999,2623.0,2622.9,10.87596483]
[1727246394731,0.0381999,2623.0,2622.9,9.64755417]
[1727246394942,0.0381999,2623.0,2622.9,9.64748748]
[1727246395103,0.0381999,2623.0,2622.9,9.64747687]
[1727246395297,0.0381999,2623.0,2622.9,8.82857433]
[1727246395638,0.0381999,2623.0,2622.9,11.70172031]
[1727246396205,3.8495699,2623.8,2623.7,3.81141]
[1727246396206,0.0381999,2623.8,2623.7,3.81141]
[1727246396411,0.0381999,2623.8,2623.7,6.39740628]
[1727246398331,0.0381999,2623.8,2623.7,11.37703847]
[1727246398545,0.0381999,2623.8,2623.7,11.30081633]
[1727246398740,0.0381999,2623.8,2623.7,13.71770608]
[1727246400365,0.0381999,2623.8,2623.7,13.31741342]
[1727246401269,0.0381999,2623.8,2623.7,12.49141342]
[1727246401575,0.0381999,2623.8,2623.7,8.95229975]
[1727246401724,0.0381999,2623.8,2623.7,13.31741342]
[1727246406628,0.0381999,2623.8,2623.7,9.77829975]
[1727246407855,0.0381999,2623.8,2623.6,3.81154]
[1727246407856,0.7932,2623.7,2623.6,3.81154]
[1727246408240,0.7932,2623.7,2623.4,3.81176]
[1727246408644,0.7932,2623.7,2623.5,3.81161]
[1727246409145,0.7932,2623.7,2623.5,3.0]
[1727246409548,0.7932,2623.7,2623.6,0.55]
[1727246409936,0.7932,2623.7,2623.4,3.81176]
[1727246411265,0.7932,2623.7,2623.5,0.55]
[1727246412535,3.81141,2623.7,2623.3,0.55]
[1727246412741,3.81141,2623.7,2623.4,3.81182]
[1727246412742,0.7932,2623.7,2623.4,3.81182]
[1727246412943,0.7932,2623.7,2623.5,4.36167]
[1727246413368,0.0381999,2623.8,2623.5,1.367349]
[1727246413569,0.0381999,2623.8,2623.7,4.36141]
[1727246413963,0.0381999,2623.8,2623.7,7.36141]
[1727246414682,0.7932,2623.7,2623.5,3.0]
[1727246416159,0.7932,2623.7,2623.3,6.81199]
[1727246416491,0.7932,2623.7,2623.4,0.55]
[1727246419015,0.7932,2623.7,2623.4,4.36183]
[1727246420814,0.0381999,2623.8,2623.7,0.55]
[1727246420991,0.0381999,2623.8,2623.7,4.36141]
[1727246421174,0.0381999,2623.8,2623.7,7.36141]
[1727246422015,0.0381999,2623.8,2623.7,7.43762762]
[1727246422373,0.0381999,2623.8,2623.7,7.36141]
[1727246422580,0.0381999,2623.8,2623.7,8.83261337]
[1727246430206,0.0381999,2623.8,2623.7,2.02120337]
[1727246430942,0.0381999,2623.8,2623.7,8.83261337]
[1727246431327,0.0381999,2623.8,2623.7,9.59801337]
[1727246434742,0.0381999,2623.8,2623.7,8.83261337]
[1727246436251,0.0381999,2623.8,2623.6,3.0]
[1727246436407,0.0381999,2623.8,2623.4,3.81182]
[1727246436754,0.8023,2623.7,2623.2,3.81204]
[1727246436935,0.8023,2623.7,2623.3,3.8119]
[1727246437248,0.8023,2623.7,2623.2,3.81204]
[1727246437249,4.61371,2623.7,2623.2,5.13472335]
[1727246437582,0.8023,2623.7,2623.2,5.13472335]
[1727246437719,0.8023,2623.7,2623.3,3.81198]
[1727246438237,0.8023,2623.7,2623.5,3.81169]
[1727246438630,0.8023,2623.7,2623.4,3.81183]
[1727246442022,0.8023,2623.7,2623.4,3.81175]
[1727246442756,0.8023,2623.7,2623.5,3.81169]
[1727246443323,0.8023,2623.7,2623.4,3.81181]
[1727246444768,0.10427889,2623.6,2623.4,3.81181]
[1727246448241,0.10427889,2623.6,2623.4,4.66366103]
[1727246448437,0.10427889,2623.6,2623.3,3.55]
[1727246448645,0.10427889,2623.6,2623.3,7.36192]
[1727246448859,0.10427889,2623.6,2623.3,6.81192]
[1727246449540,0.10427889,2623.6,2623.4,4.60911]
[1727246452231,0.10427889,2623.6,2623.5,8.257656]
[1727246452430,0.0381999,2623.8,2623.7,3.81141]
[1727246452664,0.14263644,2623.8,2623.7,6.81141]
[1727246452872,0.14263644,2623.8,2623.7,7.61264305]
[1727246454359,0.14263644,2623.8,2623.7,9.04816643]
[1727246454679,0.14263644,2623.8,2623.7,12.89517004]
[1727246454837,0.14263644,2623.8,2623.7,13.69171119]
[1727246455040,0.14263644,2623.8,2623.7,9.66193987]
[1727246455346,0.14263644,2623.8,2623.7,3.80123305]
[1727246455546,0.94453644,2623.8,2623.7,3.80123305]
[1727246455760,0.94453644,2623.8,2623.5,3.0]
[1727246456454,0.94453644,2623.8,2623.3,1.23401301]
[1727246456455,4.75580644,2623.8,2623.3,1.23401301]
[1727246456707,0.94453644,2623.8,2623.2,3.81205]
[1727246456848,0.94453644,2623.8,2623.4,3.81175]
[1727246459498,0.8019,2623.0,2622.5,2.39788001]
[1727246459656,0.8019,2622.8,2622.3,3.22567313]
[1727246460009,3.81319,2622.5,2622.2,1.19481441]
[1727246460296,3.81319,2622.5,2621.8,7.06120562]
[1727246460297,4.61535,2622.3,2621.9,1.23431757]
[1727246460452,4.61535,2622.3,2621.7,0.79654115]
[1727246460453,3.61586775,2622.2,2621.7,0.79654115]
[1727246460659,0.09866702,2622.1,2621.7,0.44603414]
[1727246461061,0.07553097,2622.0,2621.4,5.84593938]
[1727246461370,4.6101322,2622.2,2621.4,5.84593938]
[1727246461371,0.09829288,2621.9,2621.5,0.8231408]
[1727246461712,0.8019,2622.3,2621.6,3.89071552]
[1727246461857,0.09801394,2621.8,2621.7,3.81431]
[1727246462058,0.8019,2622.3,2621.7,3.81431]
[1727246462255,0.09829951,2622.2,2621.8,0.83719335]
[1727246462501,0.8019,2622.3,2621.8,0.83719335]
[1727246462694,0.09814636,2622.1,2621.8,0.83719335]
[1727246462861,0.09825925,2622.2,2621.8,4.65131335]
[1727246463061,0.8019,2622.3,2621.8,4.65131335]
[1727246463402,3.98748022,2622.2,2621.6,0.66690802]
[1727246464204,3.98748022,2622.2,2621.5,6.8146]
[1727246465255,4.61968,2622.0,2621.3,6.81488]
[1727246465494,0.0977069,2621.9,2621.3,6.81488]
[1727246466901,0.0977069,2621.9,2621.4,3.81472]
[1727246467200,0.0977069,2621.9,2621.5,3.81459]
[1727246467693,0.0977069,2621.9,2621.7,3.81427]
[1727246468998,0.0977069,2621.9,2621.8,3.81417]
[1727246469302,0.09776704,2621.9,2621.8,3.81417]
[1727246469485,0.8057,2622.4,2621.8,3.81417]
[1727246469658,0.09821862,2622.3,2621.8,3.81417]
[1727246470121,0.09821862,2622.3,2621.9,3.81401]
[1727246470255,0.09821862,2622.3,2622.0,3.81386]
[1727246470790,0.09821862,2622.3,2622.2,3.81359]
[1727246471008,0.09821862,2622.3,2622.1,3.81365]
[1727246471157,4.61873,2622.6,2622.1,3.81365]
[1727246471375,0.09548967,2622.2,2622.1,3.81365]
[1727246471579,0.8057,2622.6,2622.1,8.39005]
[1727246471907,0.8057,2622.6,2622.2,3.81346]
[1727246472115,0.09587357,2622.5,2622.3,3.81343]
[1727246472297,0.09587357,2622.5,2622.1,3.81364]
[1727246472505,0.09587357,2622.5,2622.3,3.8133]
[1727246472880,0.8057,2622.8,2622.3,3.8133]
[1727246473190,0.09609927,2622.7,2622.3,3.8133]
[1727246473720,0.09598643,2622.6,2622.3,3.8133]
[1727246473937,0.09598643,2622.6,2622.2,3.81358]
[1727246474078,8.43125,2622.8,2622.2,3.81358]
[1727246474387,0.09615966,2622.7,2622.2,3.81358]
[1727246475080,0.09615966,2622.7,2622.0,3.8138]
[1727246475081,3.81302,2622.6,2622.0,7.62759]
[1727246475282,0.09593396,2622.5,2622.0,3.81379]
[1727246476077,0.8057,2622.4,2621.9,3.0]
[1727246476398,0.8057,2622.4,2621.9,6.81402]
[1727246476399,0.09576359,2622.3,2621.9,6.81402]
[1727246476600,0.09576359,2622.3,2621.9,7.9149747]
[1727246477389,0.09576359,2622.3,2621.9,4.1009547]
[1727246477728,0.09576359,2622.3,2622.0,4.63703]
[1727246478074,3.81302,2622.6,2622.0,3.81383]
[1727246478308,0.09559738,2622.5,2622.3,3.81335]
[1727246478826,0.8057,2622.7,2622.3,3.81335]
[1727246479287,0.0942561,2622.6,2622.3,3.81335]
[1727246479496,0.0942561,2622.6,2622.5,3.81315]
[1727246479685,0.8057,2623.0,2622.5,3.81315]
[1727246479887,0.09605158,2622.9,2622.7,3.81285]
[1727246480820,0.09605158,2622.9,2622.8,3.81271]
[1727246481126,3.81192,2623.4,2622.9,3.81249]
[1727246481127,0.7843,2623.3,2622.9,3.81249]
[1727246481480,0.7843,2623.6,2623.3,3.81196]
[1727246481681,0.8224999,2623.8,2623.3,7.35229678]
[1727246481882,0.8224999,2623.8,2623.5,3.81162]
[1727246482414,0.0381999,2623.8,2623.5,8.47596855]
[1727246482599,0.09350375,2623.7,2623.6,7.70457479]
[1727246482798,0.09350375,2623.7,2623.6,11.71868678]
[1727246482987,0.09350375,2623.7,2623.6,13.38411864]
[1727246483579,0.0381999,2623.8,2623.7,6.81141]
[1727246484987,0.0381999,2623.8,2623.7,3.0]
[1727246485323,0.0381999,2623.8,2623.7,6.81141]
[1727246485479,0.0381999,2623.8,2623.7,4.65909419]
[1727246485685,0.0381999,2623.8,2623.3,3.8119]
[1727246486022,0.0381999,2623.8,2623.4,3.81184]
[1727246486316,0.08752193,2623.7,2623.4,3.81183]
[1727246486522,0.08752193,2623.7,2623.4,4.92817968]
[1727246486823,0.08752193,2623.7,2623.5,3.81167]
[1727246487187,0.08752193,2623.7,2623.4,4.92817968]
[1727246487723,0.08752193,2623.7,2623.4,8.73993968]
[1727246487921,0.08752193,2623.7,2623.5,3.81169]
[1727246488086,0.08752193,2623.7,2623.4,8.73992968]
[1727246488290,0.08752193,2623.7,2623.4,4.92816968]
[1727246489007,0.08752193,2623.7,2623.4,1.11641968]
[1727246489223,0.08752193,2623.7,2623.3,6.81197]
[1727246489794,0.08752193,2623.7,2623.2,3.81206]
[1727246490166,0.08752193,2623.7,2623.3,3.81197]
[1727246490327,0.08752193,2623.7,2623.6,7.62835]
[1727246490534,0.08752193,2623.7,2623.6,7.70456854]
[1727246490689,0.0381999,2623.8,2623.7,6.81141]
[1727246490895,0.0381999,2623.8,2623.7,6.88762454]
[1727246491086,0.0381999,2623.8,2623.7,10.42796132]
[1727246491291,0.0381999,2623.8,2623.7,10.35174678]
[1727246491526,0.0381999,2623.8,2623.7,12.38149141]
[1727246497624,0.0381999,2623.8,2623.7,13.16529141]
[1727246497822,0.806,2624.7,2624.4,3.81039]
[1727246498048,0.12037345,2624.5,2624.4,3.81039]
[1727246498258,0.0381999,2624.5,2624.4,4.92651468]
[1727246499156,0.12037345,2624.5,2624.4,7.92651468]
[1727246499357,0.0381999,2624.5,2624.4,7.92651468]
[1727246502037,0.0381999,2624.5,2624.4,8.71031468]
[1727246506223,0.0381999,2625.3,2625.2,3.80923]
[1727246506481,0.0381999,2625.3,2625.2,7.34956678]
[1727246506938,0.11843789,2625.3,2625.2,7.34956678]
[1727246507135,0.0381999,2625.3,2625.2,7.34956678]
[1727246507629,0.1187891,2625.3,2625.2,7.34956678]
[1727246507968,0.1187891,2625.3,2625.2,4.26986141]
[1727246508261,0.1187891,2625.3,2625.2,10.8863782]